[Event "Early-Titled-Tuesday-Blitz-April-02-2024"]
[Site "Chess.com"]
[Date "2024.04.02"]
[Round "2"]
[White "edgarhay012"]
[Black "Beca95"]
[Result "0-1"]
[WhiteElo "2628"]
[BlackElo "2949"]
[TimeControl "180+1"]
[EndTime "8:14:16 PDT"]
[Termination "Beca95 won by checkmate"]

1. e4 {[%clk 0:03:00.9]} 1... c5 {[%clk 0:02:59.3]} 2. Nc3 {[%clk 0:03:01.3]}
2... d6 {[%clk 0:02:59.4]} 3. d4 {[%clk 0:03:01.3]} 3... cxd4 {[%clk 0:02:59.5]}
4. Qxd4 {[%clk 0:03:02.2]} 4... Nc6 {[%clk 0:02:59.9]} 5. Qd2 {[%clk 0:03:02.8]}
5... Nf6 {[%clk 0:02:59.6]} 6. b3 {[%clk 0:03:02.4]} 6... e6 {[%clk 0:02:59.9]}
7. Bb2 {[%clk 0:03:02.2]} 7... d5 {[%clk 0:02:56.1]} 8. exd5 {[%clk 0:03:03.1]}
8... exd5 {[%clk 0:02:54.8]} 9. O-O-O {[%clk 0:03:03.6]} 9... Be6 {[%clk
0:02:54.8]} 10. Nf3 {[%clk 0:03:03.5]} 10... Qa5 {[%clk 0:02:51.7]} 11. Nb5
{[%clk 0:03:03.9]} 11... Bb4 {[%clk 0:02:47.2]} 12. Qg5 {[%clk 0:02:51.2]} 12...
Ne4 {[%clk 0:02:47.2]} 13. Qf4 {[%clk 0:02:01.1]} 13... O-O {[%clk 0:02:46.5]}
14. Ne5 {[%clk 0:01:50.3]} 14... f6 {[%clk 0:02:38.7]} 15. Nxc6 {[%clk
0:01:19.8]} 15... bxc6 {[%clk 0:02:39.6]} 16. Nd4 {[%clk 0:01:20.4]} 16... Qxa2
{[%clk 0:02:36]} 17. Nxe6 {[%clk 0:00:27.3]} 17... Ba3 {[%clk 0:02:35.8]} 18.
Rd3 {[%clk 0:00:27.8]} 18... Qa1# {[%clk 0:02:34]} 0-1

[Event "Early-Titled-Tuesday-Blitz-April-02-2024"]
[Site "Chess.com"]
[Date "2024.04.02"]
[Round "2"]
[White "Licancabur"]
[Black "carloseduar100"]
[Result "1-0"]
[WhiteElo "2487"]
[BlackElo "2188"]
[TimeControl "180+1"]
[EndTime "8:14:16 PDT"]
[Termination "Licancabur won by resignation"]

1. d4 {[%clk 0:03:00.9]} 1... d5 {[%clk 0:02:46.4]} 2. Bg5 {[%clk 0:02:59.1]}
2... Bf5 {[%clk 0:02:44.2]} 3. e3 {[%clk 0:02:55.9]} 3... c6 {[%clk 0:02:43.3]}
4. Nd2 {[%clk 0:02:44.3]} 4... Nd7 {[%clk 0:02:35.8]} 5. Ngf3 {[%clk 0:02:22.1]}
5... Ngf6 {[%clk 0:02:34.6]} 6. h3 {[%clk 0:02:18.8]} 6... h6 {[%clk 0:02:34.4]}
7. Bh4 {[%clk 0:02:18.2]} 7... e6 {[%clk 0:02:34.6]} 8. Bd3 {[%clk 0:02:09.1]}
8... Bxd3 {[%clk 0:02:26]} 9. cxd3 {[%clk 0:02:09.5]} 9... Be7 {[%clk
0:02:24.9]} 10. O-O {[%clk 0:02:08.7]} 10... Qc7 {[%clk 0:02:19.3]} 11. Rc1
{[%clk 0:02:03.9]} 11... e5 {[%clk 0:02:02.6]} 12. dxe5 {[%clk 0:01:58]} 12...
Nxe5 {[%clk 0:02:02.4]} 13. Nxe5 {[%clk 0:01:45.9]} 13... Qxe5 {[%clk
0:02:03.3]} 14. Qb3 {[%clk 0:01:45]} 14... Qc7 {[%clk 0:01:50.9]} 15. Bxf6
{[%clk 0:01:41.4]} 15... Bxf6 {[%clk 0:01:50.1]} 16. Qxd5 {[%clk 0:01:38.9]}
16... Bxb2 {[%clk 0:01:40.5]} 17. Qe4+ {[%clk 0:01:32.4]} 17... Kf8 {[%clk
0:01:34.7]} 18. Qb4+ {[%clk 0:01:30.6]} 1-0

[Event "Early-Titled-Tuesday-Blitz-April-02-2024"]
[Site "Chess.com"]
[Date "2024.04.02"]
[Round "2"]
[White "cakeuvdort"]
[Black "Dacean99"]
[Result "0-1"]
[WhiteElo "2302"]
[BlackElo "2673"]
[TimeControl "180+1"]
[EndTime "8:14:17 PDT"]
[Termination "Dacean99 won by resignation"]

1. Nf3 {[%clk 0:02:59.9]} 1... c5 {[%clk 0:02:58.8]} 2. e3 {[%clk 0:03:00.3]}
2... Nf6 {[%clk 0:02:55.2]} 3. b3 {[%clk 0:03:00.6]} 3... g6 {[%clk 0:02:55.1]}
4. Bb2 {[%clk 0:03:01]} 4... Bg7 {[%clk 0:02:55.6]} 5. d4 {[%clk 0:03:00.8]}
5... O-O {[%clk 0:02:54.6]} 6. Be2 {[%clk 0:03:01.1]} 6... cxd4 {[%clk
0:02:54.3]} 7. Nxd4 {[%clk 0:03:00.4]} 7... d5 {[%clk 0:02:53.8]} 8. O-O {[%clk
0:03:00.2]} 8... Nc6 {[%clk 0:02:53]} 9. Nxc6 {[%clk 0:02:55.7]} 9... bxc6
{[%clk 0:02:52.6]} 10. c4 {[%clk 0:02:54.9]} 10... e6 {[%clk 0:02:51.7]} 11. Nd2
{[%clk 0:02:54.6]} 11... a5 {[%clk 0:02:50.4]} 12. Rc1 {[%clk 0:02:53.4]} 12...
Ba6 {[%clk 0:02:48.6]} 13. Nf3 {[%clk 0:02:49.2]} 13... a4 {[%clk 0:02:45.9]}
14. Ne5 {[%clk 0:02:27.5]} 14... axb3 {[%clk 0:02:42.3]} 15. axb3 {[%clk
0:02:22.8]} 15... Rc8 {[%clk 0:02:40.6]} 16. cxd5 {[%clk 0:02:09.3]} 16... Bxe2
{[%clk 0:02:40.2]} 17. Qxe2 {[%clk 0:02:09.6]} 17... cxd5 {[%clk 0:02:39.6]} 18.
Nc6 {[%clk 0:02:05.6]} 18... Qd7 {[%clk 0:02:33.5]} 19. b4 {[%clk 0:01:59.4]}
19... Rxc6 {[%clk 0:02:29.2]} 20. Bxf6 {[%clk 0:01:42.4]} 20... Bxf6 {[%clk
0:02:09.6]} 21. Qb5 {[%clk 0:01:39.4]} 21... Rfc8 {[%clk 0:02:08.4]} 22. Rc5
{[%clk 0:01:36.5]} 22... Be7 {[%clk 0:01:54.4]} 0-1

[Event "Early-Titled-Tuesday-Blitz-April-02-2024"]
[Site "Chess.com"]
[Date "2024.04.02"]
[Round "2"]
[White "LikeWater"]
[Black "MIss_MIaMI"]
[Result "1-0"]
[WhiteElo "2663"]
[BlackElo "2376"]
[TimeControl "180+1"]
[EndTime "8:14:24 PDT"]
[Termination "LikeWater won by checkmate"]

1. e4 {[%clk 0:02:59.1]} 1... c5 {[%clk 0:03:00.5]} 2. Nc3 {[%clk 0:02:56.2]}
2... e6 {[%clk 0:03:00.7]} 3. Nf3 {[%clk 0:02:53.4]} 3... a6 {[%clk 0:03:00.9]}
4. g3 {[%clk 0:02:51.7]} 4... b5 {[%clk 0:02:59.3]} 5. d4 {[%clk 0:02:51.8]}
5... cxd4 {[%clk 0:02:59.2]} 6. Nxd4 {[%clk 0:02:52.7]} 6... Bb7 {[%clk
0:02:59.3]} 7. Bg2 {[%clk 0:02:52.9]} 7... Qc7 {[%clk 0:02:56.5]} 8. O-O {[%clk
0:02:52.1]} 8... Nf6 {[%clk 0:02:57.1]} 9. Re1 {[%clk 0:02:50.6]} 9... d6 {[%clk
0:02:52.9]} 10. a4 {[%clk 0:02:46.9]} 10... b4 {[%clk 0:02:52.5]} 11. Nd5 {[%clk
0:02:46.8]} 11... exd5 {[%clk 0:02:43.1]} 12. exd5+ {[%clk 0:02:47.7]} 12... Kd8
{[%clk 0:02:43.1]} 13. Bg5 {[%clk 0:02:43.7]} 13... Be7 {[%clk 0:02:35]} 14. Nf5
{[%clk 0:02:40.9]} 14... Bf8 {[%clk 0:02:29.7]} 15. Qd4 {[%clk 0:02:37.7]} 15...
Nd7 {[%clk 0:02:28.9]} 16. Qxb4 {[%clk 0:02:21.5]} 16... h6 {[%clk 0:02:23.3]}
17. Bf4 {[%clk 0:01:42]} 17... Ne8 {[%clk 0:02:10.3]} 18. Rxe8+ {[%clk
0:01:30.5]} 18... Kxe8 {[%clk 0:02:11.2]} 19. Nxd6+ {[%clk 0:01:31.4]} 19...
Bxd6 {[%clk 0:01:55]} 20. Bxd6 {[%clk 0:01:32.3]} 20... Qc8 {[%clk 0:01:55.3]}
21. Re1+ {[%clk 0:01:31.2]} 21... Kd8 {[%clk 0:01:39.5]} 22. Qa5+ {[%clk
0:01:29.5]} 22... Nb6 {[%clk 0:01:38.9]} 23. Qxb6+ {[%clk 0:01:29.5]} 23... Kd7
{[%clk 0:01:39.6]} 24. Re7# {[%clk 0:01:28.9]} 1-0

[Event "Early-Titled-Tuesday-Blitz-April-02-2024"]
[Site "Chess.com"]
[Date "2024.04.02"]
[Round "2"]
[White "biostatistician"]
[Black "Malikova777"]
[Result "1-0"]
[WhiteElo "2539"]
[BlackElo "2304"]
[TimeControl "180+1"]
[EndTime "8:14:24 PDT"]
[Termination "biostatistician won by resignation"]

1. d4 {[%clk 0:03:00.7]} 1... Nf6 {[%clk 0:02:59.7]} 2. Nf3 {[%clk 0:03:01.6]}
2... g6 {[%clk 0:02:59.9]} 3. c4 {[%clk 0:03:01.9]} 3... Bg7 {[%clk 0:03:00.2]}
4. Nc3 {[%clk 0:03:02.8]} 4... d5 {[%clk 0:03:00.5]} 5. cxd5 {[%clk 0:03:02.8]}
5... Nxd5 {[%clk 0:03:01.4]} 6. e4 {[%clk 0:03:03.7]} 6... Nxc3 {[%clk
0:03:01.4]} 7. bxc3 {[%clk 0:03:04.6]} 7... c5 {[%clk 0:03:01.9]} 8. Be3 {[%clk
0:03:04.4]} 8... O-O {[%clk 0:03:01.5]} 9. Rc1 {[%clk 0:03:03.9]} 9... Nc6
{[%clk 0:03:02.2]} 10. d5 {[%clk 0:03:03.4]} 10... Ne5 {[%clk 0:02:38.7]} 11.
Nxe5 {[%clk 0:03:03.4]} 11... Bxe5 {[%clk 0:02:39.6]} 12. Bxc5 {[%clk
0:03:02.4]} 12... Bg7 {[%clk 0:02:40.1]} 13. Bd4 {[%clk 0:02:59]} 13... e5
{[%clk 0:02:16.7]} 14. Bc5 {[%clk 0:02:54.2]} 14... Re8 {[%clk 0:02:17]} 15. Bb5
{[%clk 0:02:54.3]} 15... Bd7 {[%clk 0:02:16.8]} 16. Bxd7 {[%clk 0:02:52.3]}
16... Qxd7 {[%clk 0:02:17.7]} 17. O-O {[%clk 0:02:52.1]} 17... b6 {[%clk
0:02:13.2]} 18. Be3 {[%clk 0:02:52]} 18... Rad8 {[%clk 0:02:10.8]} 19. c4 {[%clk
0:02:52.1]} 19... f5 {[%clk 0:02:09.6]} 20. f3 {[%clk 0:02:50.9]} 20... Bf8
{[%clk 0:02:06.3]} 21. c5 {[%clk 0:02:36.1]} 21... bxc5 {[%clk 0:01:54.3]} 22.
Bxc5 {[%clk 0:02:37]} 22... Bh6 {[%clk 0:01:49.7]} 23. Rc2 {[%clk 0:02:32.6]}
23... Rc8 {[%clk 0:01:49.5]} 24. Bf2 {[%clk 0:02:31.9]} 24... Qb5 {[%clk
0:01:39.8]} 25. Rxc8 {[%clk 0:02:26.9]} 25... Rxc8 {[%clk 0:01:39.3]} 26. d6
{[%clk 0:02:27.8]} 26... Rd8 {[%clk 0:01:32.8]} 27. exf5 {[%clk 0:02:22.8]}
27... gxf5 {[%clk 0:01:33.7]} 28. Bxa7 {[%clk 0:02:22.2]} 28... Qa6 {[%clk
0:01:28.5]} 29. Qd5+ {[%clk 0:02:16.6]} 29... Kf8 {[%clk 0:01:26.4]} 30. Bc5
{[%clk 0:02:14.3]} 30... Qa8 {[%clk 0:01:24.1]} 31. d7+ {[%clk 0:02:11.4]} 1-0

[Event "Early-Titled-Tuesday-Blitz-April-02-2024"]
[Site "Chess.com"]
[Date "2024.04.02"]
[Round "2"]
[White "GM4life"]
[Black "chessdjw"]
[Result "0-1"]
[WhiteElo "2572"]
[BlackElo "2792"]
[TimeControl "180+1"]
[EndTime "8:14:50 PDT"]
[Termination "chessdjw won by resignation"]

1. e4 {[%clk 0:03:00.9]} 1... c5 {[%clk 0:02:59.3]} 2. Nf3 {[%clk 0:03:00.4]}
2... d6 {[%clk 0:02:59.4]} 3. d4 {[%clk 0:03:00.9]} 3... cxd4 {[%clk 0:03:00.3]}
4. Nxd4 {[%clk 0:03:01.5]} 4... Nf6 {[%clk 0:02:59.6]} 5. Nc3 {[%clk 0:03:02.4]}
5... a6 {[%clk 0:02:59.6]} 6. Bd3 {[%clk 0:03:01.5]} 6... g6 {[%clk 0:02:56.5]}
7. f3 {[%clk 0:03:01.4]} 7... Bg7 {[%clk 0:02:54.1]} 8. Be3 {[%clk 0:03:00.2]}
8... h5 {[%clk 0:02:54]} 9. Qd2 {[%clk 0:02:59.3]} 9... Nbd7 {[%clk 0:02:49.1]}
10. O-O-O {[%clk 0:02:58.2]} 10... b5 {[%clk 0:02:48.5]} 11. Kb1 {[%clk
0:02:56.1]} 11... Bb7 {[%clk 0:02:48.8]} 12. h3 {[%clk 0:02:52.1]} 12... h4
{[%clk 0:02:47.2]} 13. a3 {[%clk 0:02:46.7]} 13... Rc8 {[%clk 0:02:46.7]} 14.
Rde1 {[%clk 0:02:43]} 14... Ne5 {[%clk 0:02:44.7]} 15. Bf4 {[%clk 0:02:37.2]}
15... Nh5 {[%clk 0:02:42.7]} 16. Bh2 {[%clk 0:02:35]} 16... Nc4 {[%clk
0:02:22.1]} 17. Bxc4 {[%clk 0:02:33.9]} 17... Rxc4 {[%clk 0:02:23]} 18. Nde2
{[%clk 0:02:18.9]} 18... b4 {[%clk 0:02:15]} 19. axb4 {[%clk 0:02:14.3]} 19...
Rxb4 {[%clk 0:02:15.9]} 20. b3 {[%clk 0:02:11.6]} 20... a5 {[%clk 0:02:13.1]}
21. Nd5 {[%clk 0:02:00.2]} 21... Bxd5 {[%clk 0:02:10.5]} 22. exd5 {[%clk
0:02:01.1]} 22... O-O {[%clk 0:02:07.5]} 23. Nf4 {[%clk 0:01:51.4]} 23... Qb6
{[%clk 0:01:40.3]} 24. Nd3 {[%clk 0:01:34.5]} 24... Qd4 {[%clk 0:01:24.2]} 25.
Ka2 {[%clk 0:01:24]} 25... Ra4+ {[%clk 0:01:23.9]} 26. bxa4 {[%clk 0:01:19.2]}
26... Qxa4+ {[%clk 0:01:24.8]} 0-1

[Event "Early-Titled-Tuesday-Blitz-April-02-2024"]
[Site "Chess.com"]
[Date "2024.04.02"]
[Round "2"]
[White "VD_coach"]
[Black "GnowReopard"]
[Result "0-1"]
[WhiteElo "2567"]
[BlackElo "2761"]
[TimeControl "180+1"]
[EndTime "8:14:51 PDT"]
[Termination "GnowReopard won by resignation"]

1. d4 {[%clk 0:03:00.9]} 1... Nf6 {[%clk 0:02:59.7]} 2. c4 {[%clk 0:02:56.5]}
2... e6 {[%clk 0:02:58.4]} 3. Nf3 {[%clk 0:02:47.9]} 3... c5 {[%clk 0:02:56.8]}
4. e3 {[%clk 0:02:47.1]} 4... d5 {[%clk 0:02:55.7]} 5. Nc3 {[%clk 0:02:46.2]}
5... Nc6 {[%clk 0:02:56.1]} 6. a3 {[%clk 0:02:44.5]} 6... a6 {[%clk 0:02:56.4]}
7. Bd3 {[%clk 0:02:42.6]} 7... dxc4 {[%clk 0:02:56]} 8. Bxc4 {[%clk 0:02:43.5]}
8... b5 {[%clk 0:02:56.6]} 9. Ba2 {[%clk 0:02:41.9]} 9... Bb7 {[%clk 0:02:56.4]}
10. O-O {[%clk 0:02:41.8]} 10... Qc7 {[%clk 0:02:56]} 11. Qe2 {[%clk 0:02:41.5]}
11... Rd8 {[%clk 0:02:54.8]} 12. Rd1 {[%clk 0:02:40.5]} 12... Be7 {[%clk
0:02:44.4]} 13. dxc5 {[%clk 0:02:40]} 13... Bxc5 {[%clk 0:02:44]} 14. b4 {[%clk
0:02:40.3]} 14... Rxd1+ {[%clk 0:02:39.2]} 15. Qxd1 {[%clk 0:02:38.2]} 15... Bd6
{[%clk 0:02:38.9]} 16. Bb2 {[%clk 0:02:37.7]} 16... O-O {[%clk 0:02:32.4]} 17.
Rc1 {[%clk 0:02:34.4]} 17... Rd8 {[%clk 0:02:31.6]} 18. Qe2 {[%clk 0:02:33.1]}
18... Qb8 {[%clk 0:02:30.4]} 19. Bb1 {[%clk 0:02:27.2]} 19... Ne5 {[%clk
0:02:27.3]} 20. Nxe5 {[%clk 0:02:26]} 20... Bxe5 {[%clk 0:02:28.2]} 21. h3
{[%clk 0:02:02.7]} 21... h6 {[%clk 0:02:25.1]} 22. Rd1 {[%clk 0:01:59.7]} 22...
Rc8 {[%clk 0:02:24.9]} 23. Rc1 {[%clk 0:01:46.9]} 23... Qa8 {[%clk 0:02:20]} 24.
f4 {[%clk 0:01:45.8]} 24... Bb8 {[%clk 0:02:16.1]} 25. e4 {[%clk 0:01:40.6]}
25... Bxf4 {[%clk 0:02:14.4]} 26. Rf1 {[%clk 0:01:39.6]} 26... Be5 {[%clk
0:02:14.1]} 27. Nd1 {[%clk 0:01:34.2]} 27... Qb8 {[%clk 0:02:09.9]} 28. Ne3
{[%clk 0:01:29.7]} 28... Bxb2 {[%clk 0:01:58]} 29. Qxb2 {[%clk 0:01:28.7]} 29...
Nxe4 {[%clk 0:01:58.6]} 30. Ng4 {[%clk 0:01:21.2]} 30... Qg3 {[%clk 0:01:52.6]}
0-1

[Event "Early-Titled-Tuesday-Blitz-April-02-2024"]
[Site "Chess.com"]
[Date "2024.04.02"]
[Round "2"]
[White "kachsona"]
[Black "Josgar05"]
[Result "1-0"]
[WhiteElo "2609"]
[BlackElo "2356"]
[TimeControl "180+1"]
[EndTime "8:14:52 PDT"]
[Termination "kachsona won by resignation"]

1. e4 {[%clk 0:03:00.9]} 1... e6 {[%clk 0:02:54.3]} 2. Nf3 {[%clk 0:02:58.5]}
2... d5 {[%clk 0:02:48.4]} 3. Nc3 {[%clk 0:02:58.5]} 3... Nf6 {[%clk 0:02:44.1]}
4. d3 {[%clk 0:02:54.9]} 4... c5 {[%clk 0:02:40.3]} 5. Bg5 {[%clk 0:02:44.4]}
5... Be7 {[%clk 0:02:39.3]} 6. e5 {[%clk 0:02:44.3]} 6... Nfd7 {[%clk
0:02:37.9]} 7. Bxe7 {[%clk 0:02:44.3]} 7... Qxe7 {[%clk 0:02:38.6]} 8. Nb5
{[%clk 0:02:44.4]} 8... O-O {[%clk 0:02:39.2]} 9. Nc7 {[%clk 0:02:42]} 9... Nxe5
{[%clk 0:02:33.4]} 10. Nxa8 {[%clk 0:02:42]} 10... Nxf3+ {[%clk 0:02:33.9]} 11.
Qxf3 {[%clk 0:02:41.8]} 11... Nc6 {[%clk 0:02:34.2]} 12. c3 {[%clk 0:02:16.4]}
12... b6 {[%clk 0:02:33.4]} 13. Be2 {[%clk 0:02:13.3]} 13... Bb7 {[%clk
0:02:33.3]} 14. Nxb6 {[%clk 0:02:13.2]} 14... axb6 {[%clk 0:02:34.2]} 15. O-O
{[%clk 0:02:12.4]} 15... d4 {[%clk 0:02:32.6]} 16. Qg3 {[%clk 0:02:03.4]} 16...
dxc3 {[%clk 0:02:26.8]} 17. bxc3 {[%clk 0:02:04.3]} 17... Qf6 {[%clk 0:02:27.3]}
18. Qc7 {[%clk 0:01:59.5]} 18... Ba8 {[%clk 0:02:20.9]} 19. Bf3 {[%clk
0:01:56.5]} 19... Ne5 {[%clk 0:02:16.9]} 20. Bxa8 {[%clk 0:01:56]} 20... Rxa8
{[%clk 0:02:17.8]} 21. d4 {[%clk 0:01:49.6]} 21... Nc4 {[%clk 0:02:13.8]} 22.
dxc5 {[%clk 0:01:41.7]} 22... bxc5 {[%clk 0:02:14.7]} 23. Qxc5 {[%clk
0:01:41.5]} 23... Ne5 {[%clk 0:02:13.8]} 24. a4 {[%clk 0:01:36.5]} 24... h5
{[%clk 0:02:09.1]} 25. a5 {[%clk 0:01:34.6]} 25... Qg5 {[%clk 0:01:59]} 26. Qe3
{[%clk 0:01:33.5]} 26... Qf6 {[%clk 0:01:58.1]} 27. a6 {[%clk 0:01:26.7]} 27...
g6 {[%clk 0:01:51.2]} 28. a7 {[%clk 0:01:24.2]} 28... Qf5 {[%clk 0:01:47.2]} 29.
Ra5 {[%clk 0:01:13.6]} 29... Nf3+ {[%clk 0:01:45]} 30. Qxf3 {[%clk 0:01:13.7]}
30... Qxa5 {[%clk 0:01:45.7]} 31. Qxa8+ {[%clk 0:01:13.6]} 31... Kh7 {[%clk
0:01:46.6]} 32. Qb7 {[%clk 0:01:13.6]} 1-0

[Event "Early-Titled-Tuesday-Blitz-April-02-2024"]
[Site "Chess.com"]
[Date "2024.04.02"]
[Round "2"]
[White "alexrustemov"]
[Black "lefonghua"]
[Result "1-0"]
[WhiteElo "2902"]
[BlackElo "2607"]
[TimeControl "180+1"]
[EndTime "8:14:58 PDT"]
[Termination "alexrustemov won by resignation"]

1. d4 {[%clk 0:03:00.9]} 1... Nf6 {[%clk 0:02:59.5]} 2. c4 {[%clk 0:03:01.5]}
2... c5 {[%clk 0:02:58.6]} 3. d5 {[%clk 0:03:00.9]} 3... b5 {[%clk 0:02:58.9]}
4. cxb5 {[%clk 0:03:00.3]} 4... a6 {[%clk 0:02:59.5]} 5. e3 {[%clk 0:03:00.8]}
5... d6 {[%clk 0:02:53.2]} 6. Nc3 {[%clk 0:03:00.2]} 6... g6 {[%clk 0:02:53.6]}
7. a4 {[%clk 0:02:59.7]} 7... Bg7 {[%clk 0:02:53.6]} 8. e4 {[%clk 0:02:59.9]}
8... O-O {[%clk 0:02:53.7]} 9. Nf3 {[%clk 0:03:00.3]} 9... axb5 {[%clk 0:02:52]}
10. Bxb5 {[%clk 0:02:59.4]} 10... Na6 {[%clk 0:02:52]} 11. O-O {[%clk
0:02:57.9]} 11... Nb4 {[%clk 0:02:52.3]} 12. h3 {[%clk 0:02:54.8]} 12... Nd7
{[%clk 0:02:47.3]} 13. Bf4 {[%clk 0:02:53.8]} 13... Rb8 {[%clk 0:02:45.1]} 14.
Re1 {[%clk 0:02:51.2]} 14... Qc7 {[%clk 0:02:45]} 15. Qe2 {[%clk 0:02:49.1]}
15... Bb7 {[%clk 0:02:07.3]} 16. Rad1 {[%clk 0:02:46.2]} 16... Rfc8 {[%clk
0:02:05.1]} 17. e5 {[%clk 0:02:45.4]} 17... Nxe5 {[%clk 0:01:57.3]} 18. Nxe5
{[%clk 0:02:46.3]} 18... dxe5 {[%clk 0:01:57.1]} 19. Bxe5 {[%clk 0:02:46.2]}
19... Bxe5 {[%clk 0:01:56.6]} 20. Qxe5 {[%clk 0:02:47.1]} 20... Qxe5 {[%clk
0:01:42.7]} 21. Rxe5 {[%clk 0:02:48]} 21... Rc7 {[%clk 0:01:43.2]} 22. d6 {[%clk
0:02:23.7]} 22... exd6 {[%clk 0:01:41.1]} 23. Rxd6 {[%clk 0:02:24.6]} 23... Ra8
{[%clk 0:01:27.8]} 24. Bc4 {[%clk 0:02:15.9]} 24... Ba6 {[%clk 0:01:12.8]} 25.
Nb5 {[%clk 0:02:08.3]} 25... Bxb5 {[%clk 0:01:06.4]} 26. axb5 {[%clk 0:02:09.2]}
26... Ra1+ {[%clk 0:00:58.1]} 27. Kh2 {[%clk 0:02:08.9]} 27... Rb1 {[%clk
0:00:58.8]} 28. b6 {[%clk 0:02:01.4]} 28... Rb7 {[%clk 0:00:59.1]} 29. Rxc5
{[%clk 0:01:54]} 29... Rxb2 {[%clk 0:00:58.6]} 30. Rc7 {[%clk 0:01:54]} 30...
Rb8 {[%clk 0:00:55.3]} 31. Rxf7 {[%clk 0:01:50.7]} 1-0

[Event "Early-Titled-Tuesday-Blitz-April-02-2024"]
[Site "Chess.com"]
[Date "2024.04.02"]
[Round "2"]
[White "arenal72"]
[Black "A-Fier"]
[Result "0-1"]
[WhiteElo "2611"]
[BlackElo "2908"]
[TimeControl "180+1"]
[EndTime "8:15:06 PDT"]
[Termination "A-Fier won by checkmate"]

1. Nf3 {[%clk 0:03:00.9]} 1... Nf6 {[%clk 0:03:00.9]} 2. g3 {[%clk 0:03:01.2]}
2... Nc6 {[%clk 0:02:59.4]} 3. Bg2 {[%clk 0:02:57.5]} 3... e5 {[%clk 0:02:59]}
4. d3 {[%clk 0:02:52.8]} 4... d5 {[%clk 0:02:58.8]} 5. O-O {[%clk 0:02:52.9]}
5... h5 {[%clk 0:02:59.1]} 6. Bg5 {[%clk 0:02:50.9]} 6... Be6 {[%clk 0:02:59.3]}
7. c3 {[%clk 0:02:29.8]} 7... Qd7 {[%clk 0:02:59.4]} 8. b4 {[%clk 0:02:29.1]}
8... a6 {[%clk 0:02:58.8]} 9. a4 {[%clk 0:02:27.5]} 9... Bh3 {[%clk 0:02:58.4]}
10. Nbd2 {[%clk 0:02:22.7]} 10... Bxg2 {[%clk 0:02:58.3]} 11. Kxg2 {[%clk
0:02:22.5]} 11... Nh7 {[%clk 0:02:58.4]} 12. b5 {[%clk 0:01:53.6]} 12... Na5
{[%clk 0:02:58.3]} 13. Nxe5 {[%clk 0:01:27.6]} 13... Qe6 {[%clk 0:02:58.1]} 14.
Nef3 {[%clk 0:01:10.6]} 14... h4 {[%clk 0:02:49.1]} 15. Bxh4 {[%clk 0:01:08.9]}
15... f6 {[%clk 0:02:49.6]} 16. e4 {[%clk 0:01:08.2]} 16... g5 {[%clk
0:02:49.5]} 17. exd5 {[%clk 0:01:07.4]} 17... Qd7 {[%clk 0:02:49.9]} 18. Re1+
{[%clk 0:01:07.2]} 18... Be7 {[%clk 0:02:44.2]} 19. c4 {[%clk 0:00:41.9]} 19...
gxh4 {[%clk 0:02:43.7]} 20. Nd4 {[%clk 0:00:42.1]} 20... Ng5 {[%clk 0:02:39.1]}
21. Ne6 {[%clk 0:00:37.2]} 21... Nxe6 {[%clk 0:02:32.2]} 22. Rxe6 {[%clk
0:00:38.1]} 22... O-O-O {[%clk 0:02:32.2]} 23. bxa6 {[%clk 0:00:36.3]} 23... b6
{[%clk 0:02:32.2]} 24. Nb3 {[%clk 0:00:31.8]} 24... Nxb3 {[%clk 0:02:27.5]} 25.
Qxb3 {[%clk 0:00:32.7]} 25... Bc5 {[%clk 0:02:27.9]} 26. a5 {[%clk 0:00:30.3]}
26... hxg3 {[%clk 0:02:28.3]} 27. fxg3 {[%clk 0:00:26.8]} 27... Qh7 {[%clk
0:02:28.2]} 28. h4 {[%clk 0:00:22.6]} 28... Rdg8 {[%clk 0:02:28.1]} 29. axb6
{[%clk 0:00:18.1]} 29... Rxg3+ {[%clk 0:02:27.6]} 30. Kxg3 {[%clk 0:00:15.4]}
30... Qxh4+ {[%clk 0:02:27.8]} 31. Kf3 {[%clk 0:00:15.5]} 31... Qf2+ {[%clk
0:02:27.2]} 32. Ke4 {[%clk 0:00:12.4]} 32... Rh4# {[%clk 0:02:27.7]} 0-1

[Event "Early-Titled-Tuesday-Blitz-April-02-2024"]
[Site "Chess.com"]
[Date "2024.04.02"]
[Round "2"]
[White "KacperKacprzak"]
[Black "Massakru"]
[Result "1-0"]
[WhiteElo "2701"]
[BlackElo "2382"]
[TimeControl "180+1"]
[EndTime "8:15:08 PDT"]
[Termination "KacperKacprzak won by resignation"]

1. e4 {[%clk 0:03:00.9]} 1... e5 {[%clk 0:03:00]} 2. Nf3 {[%clk 0:03:00.7]} 2...
Nc6 {[%clk 0:03:00.7]} 3. Nc3 {[%clk 0:03:01.2]} 3... Nf6 {[%clk 0:03:00.6]} 4.
h3 {[%clk 0:03:01.9]} 4... Bc5 {[%clk 0:02:57.3]} 5. Nxe5 {[%clk 0:03:00]} 5...
Nxe5 {[%clk 0:02:48.7]} 6. d4 {[%clk 0:03:00.6]} 6... Bd6 {[%clk 0:02:49.3]} 7.
f4 {[%clk 0:03:00.2]} 7... Ng6 {[%clk 0:02:47.7]} 8. e5 {[%clk 0:03:00.3]} 8...
Be7 {[%clk 0:02:47.3]} 9. Bd3 {[%clk 0:02:57.7]} 9... Ng8 {[%clk 0:02:41]} 10.
O-O {[%clk 0:02:52.5]} 10... d6 {[%clk 0:02:38.1]} 11. f5 {[%clk 0:02:45.1]}
11... Nxe5 {[%clk 0:02:23.7]} 12. dxe5 {[%clk 0:02:43.6]} 12... dxe5 {[%clk
0:02:24.6]} 13. Be3 {[%clk 0:02:36.1]} 13... c6 {[%clk 0:02:20.7]} 14. Qf3
{[%clk 0:02:35.1]} 14... Qa5 {[%clk 0:02:12.7]} 15. Qg3 {[%clk 0:02:24.8]} 15...
Bc5 {[%clk 0:02:04.6]} 16. Qxg7 {[%clk 0:02:19.1]} 16... Bxe3+ {[%clk
0:02:02.2]} 17. Kh1 {[%clk 0:02:19.7]} 17... Bd7 {[%clk 0:01:47.1]} 18. Qxh8
{[%clk 0:02:19.9]} 18... O-O-O {[%clk 0:01:45.6]} 19. Qxh7 {[%clk 0:02:20.5]}
19... f6 {[%clk 0:01:33.8]} 20. Ne4 {[%clk 0:02:19]} 20... Qb4 {[%clk
0:01:17.7]} 21. a3 {[%clk 0:02:08.5]} 21... Qf8 {[%clk 0:01:17]} 22. Rae1 {[%clk
0:02:02.7]} 22... Bh6 {[%clk 0:01:16.3]} 23. Bc4 {[%clk 0:01:58.6]} 23... Ne7
{[%clk 0:01:03.2]} 24. Nd6+ {[%clk 0:01:46.3]} 24... Kc7 {[%clk 0:00:59.8]} 25.
Nf7 {[%clk 0:01:47.2]} 25... Bf4 {[%clk 0:00:54.4]} 26. Nxd8 {[%clk 0:01:45.3]}
26... Qxd8 {[%clk 0:00:52.8]} 27. Rxf4 {[%clk 0:01:44.9]} 1-0